[Event "Early-Titled-Tuesday-Blitz-August-29-2023"]
[Site "Chess.com"]
[Date "2023.08.29"]
[Round "10"]
[White "Pax-Pramana"]
[Black "FeketeBarika"]
[Result "1-0"]
[WhiteElo "2499"]
[BlackElo "2355"]
[TimeControl "180+1"]
[EndTime "9:53:37 PDT"]
[Termination "Pax-Pramana won by resignation"]

1. d4 {[%clk 0:03:00.9]} 1... d5 {[%clk 0:03:00]} 2. Nc3 {[%clk 0:02:59.4]} 2...
Nf6 {[%clk 0:02:59.3]} 3. Bg5 {[%clk 0:02:59.2]} 3... Ne4 {[%clk 0:02:57.5]} 4.
Bf4 {[%clk 0:02:52.9]} 4... e6 {[%clk 0:02:54.8]} 5. e3 {[%clk 0:02:44.5]} 5...
Bb4 {[%clk 0:02:49.4]} 6. Ne2 {[%clk 0:02:44.8]} 6... O-O {[%clk 0:02:48.5]} 7.
f3 {[%clk 0:02:39.6]} 7... Nxc3 {[%clk 0:02:44.5]} 8. bxc3 {[%clk 0:02:39.7]}
8... Bd6 {[%clk 0:02:44.1]} 9. h4 {[%clk 0:02:28.1]} 9... c5 {[%clk 0:02:36.2]}
10. Qd2 {[%clk 0:02:16.1]} 10... Nc6 {[%clk 0:02:32.3]} 11. Rd1 {[%clk
0:02:10.3]} 11... Bxf4 {[%clk 0:01:53.5]} 12. Nxf4 {[%clk 0:02:11.2]} 12... Qa5
{[%clk 0:01:52.3]} 13. e4 {[%clk 0:01:56.7]} 13... dxe4 {[%clk 0:01:49.8]} 14.
fxe4 {[%clk 0:01:54.5]} 14... e5 {[%clk 0:01:44.9]} 15. Nh5 {[%clk 0:01:44.8]}
15... f6 {[%clk 0:01:18.9]} 16. Bc4+ {[%clk 0:01:41.9]} 16... Kh8 {[%clk
0:01:18.3]} 17. d5 {[%clk 0:01:38.3]} 17... Nd8 {[%clk 0:01:15]} 18. Be2 {[%clk
0:01:18]} 18... Bd7 {[%clk 0:01:06.2]} 19. O-O {[%clk 0:01:10.6]} 19... b5
{[%clk 0:00:59.1]} 20. Qe3 {[%clk 0:01:09]} 20... c4 {[%clk 0:00:57.6]} 21. Qc5
{[%clk 0:01:03.9]} 21... Qb6 {[%clk 0:00:56.9]} 22. Qf2 {[%clk 0:00:59.8]} 22...
Nf7 {[%clk 0:00:55.2]} 23. Ng3 {[%clk 0:00:46]} 23... Nd6 {[%clk 0:00:52.5]} 24.
Kh2 {[%clk 0:00:46.3]} 24... Qxf2 {[%clk 0:00:51.2]} 25. Rxf2 {[%clk 0:00:47.2]}
25... a6 {[%clk 0:00:49.8]} 26. Bf3 {[%clk 0:00:44.4]} 26... Kg8 {[%clk
0:00:49.1]} 27. Nf1 {[%clk 0:00:44.4]} 27... Be8 {[%clk 0:00:47.6]} 28. Ne3
{[%clk 0:00:44.6]} 28... Bg6 {[%clk 0:00:48.1]} 29. Nf5 {[%clk 0:00:37.1]} 29...
Nxf5 {[%clk 0:00:44]} 30. exf5 {[%clk 0:00:38]} 30... Bxf5 {[%clk 0:00:44.4]}
31. d6 {[%clk 0:00:38.6]} 31... Rad8 {[%clk 0:00:42.6]} 32. Bd5+ {[%clk
0:00:38.8]} 32... Kh8 {[%clk 0:00:42.6]} 33. Rxf5 {[%clk 0:00:39.3]} 33... Rxd6
{[%clk 0:00:40.2]} 34. Rff1 {[%clk 0:00:33.1]} 34... Rfd8 {[%clk 0:00:39.3]} 35.
Bf3 {[%clk 0:00:33.6]} 35... f5 {[%clk 0:00:35]} 36. Rxd6 {[%clk 0:00:32.6]}
36... Rxd6 {[%clk 0:00:35.7]} 37. Rd1 {[%clk 0:00:33.5]} 37... Rxd1 {[%clk
0:00:30.1]} 38. Bxd1 {[%clk 0:00:34.4]} 38... Kg8 {[%clk 0:00:29.2]} 39. Bf3
{[%clk 0:00:33.6]} 39... e4 {[%clk 0:00:29]} 40. Be2 {[%clk 0:00:31.5]} 40...
Kf7 {[%clk 0:00:29.4]} 41. Kg3 {[%clk 0:00:32.1]} 41... Kf6 {[%clk 0:00:29]} 42.
Kf4 {[%clk 0:00:32.7]} 42... g6 {[%clk 0:00:27.8]} 43. g4 {[%clk 0:00:32]} 43...
h6 {[%clk 0:00:27.3]} 44. gxf5 {[%clk 0:00:31.2]} 44... gxf5 {[%clk 0:00:26.9]}
45. Bh5 {[%clk 0:00:31.5]} 45... a5 {[%clk 0:00:24.3]} 46. Be8 {[%clk
0:00:29.7]} 46... b4 {[%clk 0:00:24.5]} 47. cxb4 {[%clk 0:00:28.3]} 47... axb4
{[%clk 0:00:24.2]} 48. Bb5 {[%clk 0:00:28.8]} 48... c3 {[%clk 0:00:24]} 49. Bd7
{[%clk 0:00:28.1]} 49... e3 {[%clk 0:00:21.5]} 50. Kxe3 {[%clk 0:00:26.7]} 50...
Ke5 {[%clk 0:00:21.9]} 51. Kf3 {[%clk 0:00:23.8]} 51... f4 {[%clk 0:00:17.6]}
52. Bc8 {[%clk 0:00:24]} 52... h5 {[%clk 0:00:17.1]} 53. Bd7 {[%clk 0:00:24.3]}
53... Kd4 {[%clk 0:00:15.9]} 54. Kxf4 {[%clk 0:00:23.9]} 1-0

[Event "Early-Titled-Tuesday-Blitz-August-29-2023"]
[Site "Chess.com"]
[Date "2023.08.29"]
[Round "10"]
[White "DKmirl"]
[Black "dosto07"]
[Result "0-1"]
[WhiteElo "2266"]
[BlackElo "2468"]
[TimeControl "180+1"]
[EndTime "9:53:37 PDT"]
[Termination "dosto07 won on time"]

1. d4 {[%clk 0:01:51.5]} 1... d5 {[%clk 0:02:55.7]} 2. Nf3 {[%clk 0:01:51.6]}
2... Nf6 {[%clk 0:02:55.1]} 3. g3 {[%clk 0:01:52]} 3... c6 {[%clk 0:02:53.3]} 4.
Bg2 {[%clk 0:01:45.1]} 4... Bf5 {[%clk 0:02:52.4]} 5. O-O {[%clk 0:01:45.1]}
5... h6 {[%clk 0:02:51.1]} 6. c4 {[%clk 0:01:40.9]} 6... e6 {[%clk 0:02:45.7]}
7. Nc3 {[%clk 0:01:40.4]} 7... Nbd7 {[%clk 0:02:43.8]} 8. Nd2 {[%clk 0:01:38.1]}
8... Be7 {[%clk 0:02:41]} 9. e4 {[%clk 0:01:37.1]} 9... dxe4 {[%clk 0:02:41.3]}
10. Ndxe4 {[%clk 0:01:38]} 10... O-O {[%clk 0:02:40.3]} 11. Be3 {[%clk 0:01:37]}
11... Nxe4 {[%clk 0:02:37.8]} 12. Nxe4 {[%clk 0:01:37.9]} 12... Nf6 {[%clk
0:02:38]} 13. Nc3 {[%clk 0:01:38.4]} 13... Qa5 {[%clk 0:02:30.7]} 14. Qb3 {[%clk
0:01:34.5]} 14... Qb6 {[%clk 0:02:13]} 15. Qxb6 {[%clk 0:01:32.8]} 15... axb6
{[%clk 0:02:12.7]} 16. a3 {[%clk 0:01:30.8]} 16... Rfd8 {[%clk 0:02:10.9]} 17.
d5 {[%clk 0:01:23]} 17... exd5 {[%clk 0:02:01.6]} 18. Bxb6 {[%clk 0:01:21.8]}
18... Rd7 {[%clk 0:01:59.8]} 19. cxd5 {[%clk 0:01:21.3]} 19... Nxd5 {[%clk
0:01:58.5]} 20. Nxd5 {[%clk 0:01:18.3]} 20... cxd5 {[%clk 0:01:58.7]} 21. Rfd1
{[%clk 0:01:16.7]} 21... Be6 {[%clk 0:01:56.6]} 22. Rac1 {[%clk 0:01:14.3]}
22... Bf6 {[%clk 0:01:56.5]} 23. Bd4 {[%clk 0:01:10.8]} 23... Be7 {[%clk
0:01:46.6]} 24. Rc3 {[%clk 0:01:06.1]} 24... f6 {[%clk 0:01:44.1]} 25. Re1
{[%clk 0:01:05.2]} 25... Bf7 {[%clk 0:01:35.4]} 26. Bh3 {[%clk 0:00:58.3]} 26...
Rad8 {[%clk 0:01:20.5]} 27. Bxd7 {[%clk 0:00:57]} 27... Rxd7 {[%clk 0:01:20.9]}
28. Rec1 {[%clk 0:00:49.8]} 28... Bd6 {[%clk 0:01:18.1]} 29. Bc5 {[%clk
0:00:47]} 29... Be5 {[%clk 0:01:16.6]} 30. R3c2 {[%clk 0:00:37.6]} 30... d4
{[%clk 0:01:16.2]} 31. Rd2 {[%clk 0:00:35.1]} 31... f5 {[%clk 0:01:03.8]} 32. f4
{[%clk 0:00:32.1]} 32... Bf6 {[%clk 0:01:03.5]} 33. Rcd1 {[%clk 0:00:30.1]}
33... Bb3 {[%clk 0:01:03.4]} 34. Re1 {[%clk 0:00:26.6]} 34... Kf7 {[%clk
0:00:57.5]} 35. Kf2 {[%clk 0:00:26.5]} 35... d3 {[%clk 0:00:56.5]} 36. Re3
{[%clk 0:00:25.6]} 36... Bc2 {[%clk 0:00:54.8]} 37. Re1 {[%clk 0:00:21.2]} 37...
Bxb2 {[%clk 0:00:52.9]} 38. a4 {[%clk 0:00:13.6]} 38... Bc3 {[%clk 0:00:52.2]}
39. Be3 {[%clk 0:00:10.8]} 39... Rc7 {[%clk 0:00:46.3]} 40. Red1 {[%clk
0:00:06.8]} 40... Bxd2 {[%clk 0:00:43.8]} 41. Rxd2 {[%clk 0:00:07.6]} 41... Rc4
{[%clk 0:00:43.5]} 42. a5 {[%clk 0:00:07.4]} 42... Ra4 {[%clk 0:00:43.4]} 43.
Bb6 {[%clk 0:00:07.3]} 43... Ke6 {[%clk 0:00:43.1]} 44. Ke3 {[%clk 0:00:06.7]}
44... Kd5 {[%clk 0:00:43]} 45. Rf2 {[%clk 0:00:07]} 45... Kc4 {[%clk 0:00:40.9]}
46. Kd2 {[%clk 0:00:07]} 46... Ra1 {[%clk 0:00:40.3]} 47. Ke3 {[%clk 0:00:03.5]}
47... Re1+ {[%clk 0:00:39]} 48. Kf3 {[%clk 0:00:02.2]} 48... Kc3 {[%clk
0:00:37.7]} 49. Be3 {[%clk 0:00:01.3]} 49... Bd1+ {[%clk 0:00:35.3]} 50. Kg2
{[%clk 0:00:01.4]} 50... Rxe3 {[%clk 0:00:35.3]} 0-1

[Event "Early-Titled-Tuesday-Blitz-August-29-2023"]
[Site "Chess.com"]
[Date "2023.08.29"]
[Round "10"]
[White "supertfc"]
[Black "DeArron_Fox"]
[Result "0-1"]
[WhiteElo "2315"]
[BlackElo "2469"]
[TimeControl "180+1"]
[EndTime "9:53:37 PDT"]
[Termination "DeArron_Fox won on time"]

1. d4 {[%clk 0:02:51.9]} 1... d5 {[%clk 0:03:00.2]} 2. c4 {[%clk 0:02:51.7]}
2... e6 {[%clk 0:03:00.2]} 3. Nc3 {[%clk 0:02:50.2]} 3... Nf6 {[%clk 0:03:00.6]}
4. cxd5 {[%clk 0:02:47]} 4... exd5 {[%clk 0:03:01.5]} 5. Bg5 {[%clk 0:02:47.1]}
5... Be7 {[%clk 0:03:02]} 6. e3 {[%clk 0:02:46.8]} 6... c6 {[%clk 0:03:02.6]} 7.
Qc2 {[%clk 0:02:47.1]} 7... Nbd7 {[%clk 0:03:01.5]} 8. Bd3 {[%clk 0:02:46.1]}
8... Nh5 {[%clk 0:03:01.5]} 9. Bxe7 {[%clk 0:02:44.6]} 9... Qxe7 {[%clk
0:03:02.4]} 10. Nge2 {[%clk 0:02:43.5]} 10... g6 {[%clk 0:03:02.9]} 11. O-O
{[%clk 0:02:43.7]} 11... O-O {[%clk 0:03:03.5]} 12. Rae1 {[%clk 0:02:42.6]}
12... Ndf6 {[%clk 0:03:03.2]} 13. Kh1 {[%clk 0:02:40]} 13... Ng7 {[%clk
0:02:53.7]} 14. Ng3 {[%clk 0:02:33.2]} 14... h5 {[%clk 0:02:53.5]} 15. Nge2
{[%clk 0:02:10.8]} 15... h4 {[%clk 0:02:52]} 16. h3 {[%clk 0:02:10.9]} 16... Bf5
{[%clk 0:02:25.4]} 17. Nf4 {[%clk 0:01:48.1]} 17... Rfe8 {[%clk 0:02:22.8]} 18.
Rb1 {[%clk 0:01:42.2]} 18... a5 {[%clk 0:02:21.8]} 19. a3 {[%clk 0:01:40.6]}
19... Bxd3 {[%clk 0:02:18.1]} 20. Nxd3 {[%clk 0:01:41.5]} 20... Nf5 {[%clk
0:02:03.8]} 21. b4 {[%clk 0:01:32.5]} 21... axb4 {[%clk 0:02:03]} 22. axb4
{[%clk 0:01:33.4]} 22... b5 {[%clk 0:01:27.2]} 23. Ne2 {[%clk 0:01:16.4]} 23...
Qb7 {[%clk 0:00:54.5]} 24. Rfc1 {[%clk 0:00:59.9]} 24... Rec8 {[%clk 0:00:51.1]}
25. Ra1 {[%clk 0:00:59.5]} 25... Nd6 {[%clk 0:00:40.2]} 26. Rxa8 {[%clk
0:00:53.4]} 26... Qxa8 {[%clk 0:00:41.1]} 27. Ne5 {[%clk 0:00:47.8]} 27... Qa4
{[%clk 0:00:06.4]} 28. Qb1 {[%clk 0:00:34.1]} 28... Kg7 {[%clk 0:00:03.3]} 29.
Nf4 {[%clk 0:00:32.7]} 29... Nfe4 {[%clk 0:00:03.2]} 30. f3 {[%clk 0:00:30.7]}
30... Ng3+ {[%clk 0:00:03.4]} 31. Kh2 {[%clk 0:00:31.2]} 31... Ngf5 {[%clk
0:00:04]} 32. Re1 {[%clk 0:00:21]} 32... Nc4 {[%clk 0:00:04]} 33. Ng4 {[%clk
0:00:12.2]} 33... Qa3 {[%clk 0:00:03]} 34. Nd3 {[%clk 0:00:05.2]} 34... Re8
{[%clk 0:00:03.1]} 35. Nde5 {[%clk 0:00:02.2]} 35... Ncxe3 {[%clk 0:00:02.7]}
36. Nxe3 {[%clk 0:00:01.4]} 36... Nxe3 {[%clk 0:00:03.6]} 37. Nxc6 {[%clk
0:00:01.4]} 37... Qc3 {[%clk 0:00:04.3]} 38. Ne5 {[%clk 0:00:01.4]} 38... f6
{[%clk 0:00:03.3]} 39. Ng4 {[%clk 0:00:01.5]} 39... Nxg4+ {[%clk 0:00:03.3]} 40.
hxg4 {[%clk 0:00:02.4]} 40... Qxe1 {[%clk 0:00:03.6]} 0-1

[Event "Early-Titled-Tuesday-Blitz-August-29-2023"]
[Site "Chess.com"]
[Date "2023.08.29"]
[Round "10"]
[White "LUISMIGUELOV"]
[Black "Sunny_Star"]
[Result "0-1"]
[WhiteElo "2094"]
[BlackElo "2077"]
[TimeControl "180+1"]
[EndTime "9:53:37 PDT"]
[Termination "Sunny_Star won on time"]

1. d4 {[%clk 0:02:54.3]} 1... Nf6 {[%clk 0:02:54.7]} 2. c3 {[%clk 0:02:53.3]}
2... d5 {[%clk 0:02:53.9]} 3. Bg5 {[%clk 0:02:51.9]} 3... e6 {[%clk 0:02:53.5]}
4. Nd2 {[%clk 0:02:48.7]} 4... c6 {[%clk 0:02:52.2]} 5. f4 {[%clk 0:02:46.3]}
5... Be7 {[%clk 0:02:52.3]} 6. Ngf3 {[%clk 0:02:46.1]} 6... Nbd7 {[%clk
0:02:50]} 7. e3 {[%clk 0:02:45]} 7... h6 {[%clk 0:02:49.3]} 8. Bxf6 {[%clk
0:02:44.6]} 8... Nxf6 {[%clk 0:02:48.8]} 9. Bd3 {[%clk 0:02:43.5]} 9... Qd6
{[%clk 0:02:47.5]} 10. Ne5 {[%clk 0:02:42.9]} 10... Nd7 {[%clk 0:02:46.7]} 11.
O-O {[%clk 0:02:38]} 11... Nf6 {[%clk 0:02:37.3]} 12. h3 {[%clk 0:02:33.8]}
12... b6 {[%clk 0:02:33.5]} 13. b4 {[%clk 0:02:33.3]} 13... Bb7 {[%clk
0:02:33.2]} 14. a4 {[%clk 0:02:31.8]} 14... a5 {[%clk 0:02:20.4]} 15. bxa5
{[%clk 0:02:16.2]} 15... Rxa5 {[%clk 0:02:19.5]} 16. Rb1 {[%clk 0:02:16.1]}
16... Qc7 {[%clk 0:02:18.6]} 17. Bc2 {[%clk 0:02:10.9]} 17... c5 {[%clk
0:02:15.7]} 18. Nb3 {[%clk 0:01:54.2]} 18... Ra8 {[%clk 0:02:12.6]} 19. a5
{[%clk 0:01:49.5]} 19... bxa5 {[%clk 0:02:05.1]} 20. Ra1 {[%clk 0:01:45.9]}
20... c4 {[%clk 0:01:36.1]} 21. Nd2 {[%clk 0:01:40.7]} 21... O-O {[%clk
0:01:34.8]} 22. f5 {[%clk 0:01:31.9]} 22... exf5 {[%clk 0:01:34]} 23. Rxf5
{[%clk 0:01:23.4]} 23... Bc8 {[%clk 0:01:25.3]} 24. Rf2 {[%clk 0:01:19]} 24...
Bd6 {[%clk 0:01:24.3]} 25. Ng4 {[%clk 0:01:02.2]} 25... Nxg4 {[%clk 0:01:19.5]}
26. hxg4 {[%clk 0:01:02.1]} 26... Bg3 {[%clk 0:01:18.2]} 27. Rf5 {[%clk
0:00:38.3]} 27... Bxf5 {[%clk 0:01:13.8]} 28. gxf5 {[%clk 0:00:36.1]} 28... f6
{[%clk 0:00:48.1]} 29. Qf3 {[%clk 0:00:33.5]} 29... Rfd8 {[%clk 0:00:46.6]} 30.
e4 {[%clk 0:00:28]} 30... Bf4 {[%clk 0:00:45.2]} 31. Nf1 {[%clk 0:00:20.5]}
31... dxe4 {[%clk 0:00:40.2]} 32. Bxe4 {[%clk 0:00:19.6]} 32... Rab8 {[%clk
0:00:40.1]} 33. g3 {[%clk 0:00:20.2]} 33... Bd6 {[%clk 0:00:39]} 34. Bd5+ {[%clk
0:00:18.6]} 34... Kh8 {[%clk 0:00:38.4]} 35. Ne3 {[%clk 0:00:18.2]} 35... Bxg3
{[%clk 0:00:37.3]} 36. Nxc4 {[%clk 0:00:16]} 36... Rb5 {[%clk 0:00:30.4]} 37.
Ne3 {[%clk 0:00:13.4]} 37... Bf4 {[%clk 0:00:29]} 38. Ng2 {[%clk 0:00:12.4]}
38... Bh2+ {[%clk 0:00:26.6]} 39. Kh1 {[%clk 0:00:11.8]} 39... Rbxd5 {[%clk
0:00:26.5]} 40. c4 {[%clk 0:00:09.4]} 40... Rxd4 {[%clk 0:00:25.5]} 41. Ne3
{[%clk 0:00:07.6]} 41... Rd3 {[%clk 0:00:23.8]} 42. Qe2 {[%clk 0:00:06.3]} 42...
Bf4 {[%clk 0:00:23.1]} 43. Nd5 {[%clk 0:00:05.5]} 43... Qxc4 {[%clk 0:00:22.9]}
44. Rxa5 {[%clk 0:00:04.3]} 44... Rh3+ {[%clk 0:00:21.6]} 0-1

[Event "Early-Titled-Tuesday-Blitz-August-29-2023"]
[Site "Chess.com"]
[Date "2023.08.29"]
[Round "10"]
[White "benny_aizenberg"]
[Black "MatthewG-p4p"]
[Result "0-1"]
[WhiteElo "2663"]
[BlackElo "2846"]
[TimeControl "180+1"]
[EndTime "9:53:38 PDT"]
[Termination "MatthewG-p4p won on time"]

1. d4 {[%clk 0:03:00.9]} 1... Nf6 {[%clk 0:02:58.6]} 2. Nc3 {[%clk 0:03:00]}
2... d5 {[%clk 0:02:57.7]} 3. Bf4 {[%clk 0:03:00.4]} 3... c5 {[%clk 0:02:56.8]}
4. e3 {[%clk 0:03:00.4]} 4... Bg4 {[%clk 0:02:56.1]} 5. Qd2 {[%clk 0:02:55.4]}
5... Nc6 {[%clk 0:02:53.6]} 6. f3 {[%clk 0:02:41.5]} 6... Bd7 {[%clk 0:02:49.8]}
7. g4 {[%clk 0:02:38.5]} 7... e6 {[%clk 0:02:49]} 8. Nb5 {[%clk 0:02:31]} 8...
Rc8 {[%clk 0:02:48.7]} 9. Nd6+ {[%clk 0:02:15.1]} 9... Bxd6 {[%clk 0:02:48.8]}
10. Bxd6 {[%clk 0:02:16]} 10... cxd4 {[%clk 0:02:49]} 11. exd4 {[%clk
0:02:14.4]} 11... Qb6 {[%clk 0:02:49.1]} 12. b4 {[%clk 0:01:32.7]} 12... Qxd4
{[%clk 0:02:23.4]} 13. c3 {[%clk 0:01:31.7]} 13... Qb6 {[%clk 0:01:47]} 14. Bd3
{[%clk 0:01:20.8]} 14... Na5 {[%clk 0:01:41.9]} 15. Bc5 {[%clk 0:01:13.1]} 15...
Qc7 {[%clk 0:01:37.6]} 16. Bxa7 {[%clk 0:00:48.1]} 16... Nc4 {[%clk 0:01:18.6]}
17. Bxc4 {[%clk 0:00:46.5]} 17... Qxc4 {[%clk 0:01:13.7]} 18. Bc5 {[%clk
0:00:42.7]} 18... Nxg4 {[%clk 0:00:46.1]} 19. Ne2 {[%clk 0:00:08.8]} 19... Ne5
{[%clk 0:00:44.5]} 20. Kf2 {[%clk 0:00:06.2]} 20... Nd3+ {[%clk 0:00:43.7]} 21.
Kg2 {[%clk 0:00:06.7]} 21... Nxc5 {[%clk 0:00:44]} 22. bxc5 {[%clk 0:00:07]}
22... Qxc5 {[%clk 0:00:43.3]} 23. Rab1 {[%clk 0:00:07.3]} 23... b6 {[%clk
0:00:41.7]} 24. Rhg1 {[%clk 0:00:07.8]} 24... O-O {[%clk 0:00:40.5]} 25. Kh1
{[%clk 0:00:08.4]} 25... Qf2 {[%clk 0:00:39.4]} 26. Rg3 {[%clk 0:00:08.1]} 26...
g6 {[%clk 0:00:30.4]} 27. Rbg1 {[%clk 0:00:06.4]} 27... d4 {[%clk 0:00:26.1]}
28. cxd4 {[%clk 0:00:04.8]} 28... Bc6 {[%clk 0:00:23.9]} 29. Qd3 {[%clk
0:00:05]} 29... Rfd8 {[%clk 0:00:19.5]} 30. R1g2 {[%clk 0:00:05.3]} 30... Qe1+
{[%clk 0:00:12.7]} 31. Rg1 {[%clk 0:00:05.6]} 31... Qb4 {[%clk 0:00:13]} 32. Qe3
{[%clk 0:00:04.1]} 32... Bb5 {[%clk 0:00:12.6]} 33. Nf4 {[%clk 0:00:04.3]} 33...
Qxd4 {[%clk 0:00:12.5]} 34. Qb3 {[%clk 0:00:03.1]} 34... Bc4 {[%clk 0:00:10.5]}
35. Qb1 {[%clk 0:00:01.2]} 35... Qxf4 {[%clk 0:00:10.1]} 36. Qb2 {[%clk
0:00:01.6]} 36... Bd5 {[%clk 0:00:09.1]} 37. Qf2 {[%clk 0:00:01.2]} 37... Rc3
{[%clk 0:00:08.3]} 0-1

[Event "Early-Titled-Tuesday-Blitz-August-29-2023"]
[Site "Chess.com"]
[Date "2023.08.29"]
[Round "10"]
[White "mistrzemi"]
[Black "C_K_G"]
[Result "1/2-1/2"]
[WhiteElo "2364"]
[BlackElo "2004"]
[TimeControl "180+1"]
[EndTime "9:53:47 PDT"]
[Termination "Game drawn by agreement"]

1. e4 {[%clk 0:03:00.9]} 1... c5 {[%clk 0:03:00]} 2. Nc3 {[%clk 0:03:00.4]} 2...
d6 {[%clk 0:03:00.9]} 3. f4 {[%clk 0:03:00.3]} 3... a6 {[%clk 0:02:59.2]} 4. Nf3
{[%clk 0:03:00.4]} 4... Nc6 {[%clk 0:02:59.6]} 5. g3 {[%clk 0:03:00.1]} 5... Nf6
{[%clk 0:02:59.4]} 6. d3 {[%clk 0:03:00.3]} 6... e6 {[%clk 0:02:59.3]} 7. Bg2
{[%clk 0:02:59.7]} 7... Be7 {[%clk 0:02:59.7]} 8. O-O {[%clk 0:02:59.7]} 8...
Qc7 {[%clk 0:03:00]} 9. h3 {[%clk 0:02:59.5]} 9... b5 {[%clk 0:02:59.9]} 10. Be3
{[%clk 0:02:59.4]} 10... Bb7 {[%clk 0:02:59.7]} 11. Ne2 {[%clk 0:02:58.1]} 11...
d5 {[%clk 0:02:57.4]} 12. e5 {[%clk 0:02:57.8]} 12... Nd7 {[%clk 0:02:57.4]} 13.
d4 {[%clk 0:02:57.7]} 13... cxd4 {[%clk 0:02:56.3]} 14. Nexd4 {[%clk 0:02:55.6]}
14... Nxd4 {[%clk 0:02:54.5]} 15. Bxd4 {[%clk 0:02:55.4]} 15... Bc5 {[%clk
0:02:50.3]} 16. c3 {[%clk 0:02:51.9]} 16... Nb6 {[%clk 0:02:49.1]} 17. Qd2
{[%clk 0:02:47.3]} 17... Nc4 {[%clk 0:02:48.8]} 18. Qf2 {[%clk 0:02:47.1]} 18...
Rc8 {[%clk 0:02:43.1]} 19. b3 {[%clk 0:02:44.1]} 19... Nb6 {[%clk 0:02:20]} 20.
Rfc1 {[%clk 0:02:32.1]} 20... h6 {[%clk 0:02:02.7]} 21. Rc2 {[%clk 0:02:20.9]}
21... O-O {[%clk 0:02:01.8]} 22. Rac1 {[%clk 0:02:20.1]} 22... a5 {[%clk
0:01:57.2]} 23. Bf1 {[%clk 0:02:11.1]} 23... Ba6 {[%clk 0:01:55.5]} 24. a4
{[%clk 0:02:09.9]} 24... Qc6 {[%clk 0:01:48.5]} 25. Be3 {[%clk 0:01:44.6]} 25...
Nd7 {[%clk 0:01:44.8]} 26. Nd4 {[%clk 0:01:44.3]} 26... Bxd4 {[%clk 0:01:00.8]}
27. cxd4 {[%clk 0:01:29.6]} 27... Qb6 {[%clk 0:00:53.6]} 28. Rxc8 {[%clk
0:01:26.5]} 28... Rxc8 {[%clk 0:00:53.4]} 29. Rxc8+ {[%clk 0:01:26.6]} 29...
Bxc8 {[%clk 0:00:53.7]} 30. Bxb5 {[%clk 0:01:26.6]} 30... Qc7 {[%clk 0:00:47.7]}
31. Qd2 {[%clk 0:01:25.4]} 31... Nf8 {[%clk 0:00:18]} 32. Qc1 {[%clk 0:01:24.1]}
32... Qxc1+ {[%clk 0:00:17.1]} 33. Bxc1 {[%clk 0:01:24.3]} 33... Bb7 {[%clk
0:00:14.6]} 34. Ba3 {[%clk 0:01:23.2]} 34... Ng6 {[%clk 0:00:12]} 35. Bc5 {[%clk
0:01:11.2]} 35... f6 {[%clk 0:00:11]} 36. Be8 {[%clk 0:00:51.1]} 36... Nh8
{[%clk 0:00:08.4]} 37. Kf2 {[%clk 0:00:45.7]} 37... Nf7 {[%clk 0:00:08]} 38.
Bxf7+ {[%clk 0:00:43.1]} 38... Kxf7 {[%clk 0:00:08.4]} 39. Bb6 {[%clk
0:00:43.7]} 39... fxe5 {[%clk 0:00:08.1]} 40. fxe5 {[%clk 0:00:42.6]} 40... Ba6
{[%clk 0:00:07.1]} 41. Bxa5 {[%clk 0:00:42.8]} 41... Bd3 {[%clk 0:00:07]} 42.
Ke3 {[%clk 0:00:39.8]} 42... Bc2 {[%clk 0:00:07.3]} 43. b4 {[%clk 0:00:36.3]}
43... Bxa4 {[%clk 0:00:07.7]} 44. Bc7 {[%clk 0:00:34.1]} 44... Bb5 {[%clk
0:00:08.6]} 45. Bd6 {[%clk 0:00:32.9]} 45... g5 {[%clk 0:00:07.5]} 46. Kf3
{[%clk 0:00:29.7]} 46... Kg6 {[%clk 0:00:06.9]} 47. h4 {[%clk 0:00:27.2]} 47...
gxh4 {[%clk 0:00:06]} 48. gxh4 {[%clk 0:00:26.2]} 48... h5 {[%clk 0:00:06.5]}
49. Be7 {[%clk 0:00:22.8]} 49... Bc4 {[%clk 0:00:06.1]} 1/2-1/2